fUSD/lending_fUSD_20250502
["ID","MTS","AMOUNT","RATE_DAILY","PERIOD"]
[359587316,1746161439131,-879.70648973,0.00019899,2]
[359587317,1746161439141,-879.70648973,0.00019899,2]
[359587318,1746161439150,-879.70648973,0.00019899,2]
[359587319,1746161439161,-879.70648973,0.00019899,2]
[359587320,1746161439171,-879.70648973,0.00019899,2]
[359587321,1746161439181,-879.70648973,0.00019899,2]
[359587322,1746161439190,-879.70648973,0.00019899,2]
[359587323,1746161439200,-879.70648973,0.00019899,2]
[359587324,1746161439208,-879.70648973,0.00019899,2]
[359587325,1746161439217,-879.70648973,0.00019899,2]
[359587326,1746161439226,-879.70648973,0.00019899,2]
[359587327,1746161439237,-879.70648973,0.00019899,2]
[359587328,1746161439246,-879.70648973,0.00019899,2]
[359587329,1746161439256,-879.70648973,0.00019899,2]
[359587330,1746161439265,-879.70648973,0.00019899,2]
[359587331,1746161439275,-879.70648973,0.00019899,2]
[359587332,1746161439284,-879.70648973,0.00019899,2]
[359587333,1746161439293,-879.70648973,0.00019899,2]
[359587334,1746161439303,-879.70648973,0.00019899,2]
[359587335,1746161439312,-879.70648973,0.00019899,2]
[359587336,1746161439321,-879.70648973,0.00019899,2]
[359587337,1746161439330,-879.70648973,0.00019899,2]
[359587338,1746161439341,-879.70648973,0.00019899,2]
[359587339,1746161439351,-879.70648973,0.00019899,2]
[359587340,1746161439360,-879.70648973,0.00019899,2]
[359587341,1746161439370,-879.70648973,0.00019899,2]
[359587342,1746161439379,-879.70648973,0.00019899,2]
[359587343,1746161439388,-879.70648973,0.00019899,2]
[359587344,1746161439398,-879.70648973,0.00019899,2]
[359587345,1746161439408,-879.70648973,0.00019899,2]
[359587346,1746161439417,-879.70648973,0.00019899,2]
[359587347,1746161439426,-879.70648973,0.00019899,2]
[359587348,1746161439438,-879.70648973,0.00019899,2]
[359587349,1746161439448,-870.90942483,0.00019899,2]
[359587350,1746161439457,-870.90942483,0.00019899,2]
[359587351,1746161439466,-870.90942483,0.00019899,2]
[359587352,1746161439477,-870.90942483,0.00019899,2]
[359587353,1746161439486,-870.90942483,0.00019899,2]
[359587354,1746161439496,-870.90942483,0.00019899,2]
[359587355,1746161439506,-870.90942483,0.00019899,2]
[359587356,1746161439515,-870.90942483,0.00019899,2]
[359587357,1746161439524,-870.90942483,0.00019899,2]
[359587358,1746161439534,-870.90942483,0.00019899,2]
[359587359,1746161439543,-870.90942483,0.00019899,2]
[359587360,1746161439554,-870.9094248,0.00019899,2]
[359587361,1746161439563,-182.95549554,0.000199,2]
[359587362,1746161439572,-20170.0,0.000199,2]
[359587363,1746161439582,-215.49397455,0.000199,2]
[359587364,1746161439591,-1011.25840374,0.000199,2]
[359587365,1746161439600,-178.20771612,0.00019935,2]
[359587366,1746161439610,-207.4,0.00019953,2]
[359587367,1746161439619,-151.0,0.00019954,2]
[359587368,1746161439627,-591.19722479,0.00019973,2]
[359587369,1746161439637,-499.52427939,0.00019973,2]
[359587370,1746161439647,-160.11771949,0.00019973,2]
[359587371,1746161439656,-507.40124163,0.00019973,2]
[359587372,1746161439665,-500.0,0.00019973,2]
[359587373,1746161439674,-123281.1220701,0.00019986,2]
[359587374,1746161439683,-4690.4217308,0.00019986,2]
[359587375,1746161439693,-7072.926206,0.00019986,2]
[359587376,1746161439704,-1094.9132861,0.00019986,2]
[359587377,1746161439714,-6119.8780281,0.00019986,2]
[359587378,1746161439723,-276.43293732,0.00019999,2]
[359587379,1746161439732,-536.82485784,0.00019999,2]
[359587380,1746161439741,-546.53360989,0.00019999,2]
[359587381,1746161439751,-186.48852192,0.0002,2]
[359587382,1746161439760,-692782.79564965,0.0002,2]
[359587383,1746161439769,-1130958.62762684,0.0002,2]
[359587384,1746161439779,-1049508.79504884,0.0002,2]
[359587386,1746161440736,-596.76669111,0.0002,2]
[359587387,1746161440793,-679.53845863,0.0002,2]
[359587388,1746161440804,-360.39404021,0.0002,2]
[359587389,1746161440848,-1633.00973577,0.0002,2]
[359587409,1746161443339,-1132.7259489,0.0002,2]
[359587410,1746161443395,-7800.0,0.0002,2]
[359587411,1746161443503,-1384.28247185,0.0002,2]
[359587412,1746161443612,-658.37860201,0.0002,2]
[359587413,1746161443623,-1504.36902678,0.0002,2]
[359587414,1746161443635,-262.19232237,0.0002,2]
[359587421,1746161446331,-5499.999995,0.0002,2]
[359587422,1746161446343,-7349.88311069,0.0002,2]
[359587423,1746161446354,-1940.0,0.0002,2]
[359587441,1746161447804,-2553.73866346,0.0002,2]
[359587442,1746161447819,-266.5520094,0.0002,2]
[359587443,1746161528330,356.263995,7.945e-05,2]
[359587444,1746161528863,153.019189,0.0001,2]
[359587445,1746161577039,23900.0,0.00019271,2]
[359587446,1746161577852,300.38,0.00019271,2]
[359587447,1746161577877,6477.18,0.00019271,2]
[359587449,1746161599126,468.08186185,0.00032876,60]
[359587450,1746161606221,19000.0,0.0003287,60]
[359587451,1746161609665,-200.0,0.00019321,2]
[359587452,1746161642016,1665.18527856,0.00019,2]
[359587453,1746161799493,585.96,0.00018921,2]
[359587454,1746161827906,1038.54,0.00019,2]
[359587455,1746161861315,230.31061217,0.00018,2]
[359587456,1746161877255,236.82,0.00018913,2]
[359587457,1746161884236,191.23026,0.0002,23]
[359587458,1746161884796,1368.95,0.0001893,2]
[359587459,1746161888175,165.03,0.0001892,2]
[359587460,1746161922757,1046.47,0.00016994,2]
[359587461,1746161922941,1046.47,0.00019258,2]
[359587462,1746161927354,191.23025,0.0002,23]
[359587463,1746161961601,200.22,0.00018918,2]
[359587464,1746161979771,1068.12,0.00018911,2]
[359587465,1746161998597,250.0,0.00018911,2]
[359587466,1746162013144,2000.0,0.000301,120]
[359587467,1746162028890,2000.0,0.000301,120]
[359587469,1746162037677,265.27,0.00018898,2]
[359587470,1746162053649,1500.0,0.00019178,2]
[359587471,1746162055530,219.812821,0.00019302,2]
[359587472,1746162086136,14.917179,0.00018894,2]
[359587473,1746162086159,554.492821,0.00018894,2]
[359587474,1746162194541,300.38,0.00018951,2]
[359587475,1746162209306,170.44,0.00019178,2]
[359587477,1746162318041,1000.0,0.0003,30]
[359587478,1746162318311,1000.0,0.0003,30]
[359587479,1746162318619,1000.0,0.0003,30]
[359587480,1746162318903,1000.0,0.0003,30]
[359587481,1746162319262,1000.0,0.0003,30]
[359587482,1746162319861,1000.0,0.0003,30]
[359587483,1746162319943,1000.0,0.0003,30]
[359587484,1746162320176,1000.0,0.0003,30]
[359587485,1746162320484,1000.0,0.0003,30]
[359587486,1746162320767,1000.0,0.0003,30]
[359587487,1746162339471,974.687179,0.00018877,2]
[359587488,1746162339501,172.822821,0.00018877,2]
[359587489,1746162371240,191.2302681,0.0002,23]
[359587490,1746162404774,1000.0,0.0001889,2]
[359587491,1746162441292,200.0,0.00018884,2]
[359587497,1746162631763,-160.0,0.000194,2]
[359587498,1746162631773,-200.0,0.00019409,2]
[359587499,1746162631782,-200.0,0.00019411,2]
[359587500,1746162631792,-250.0,0.00019414,2]
[359587501,1746162631801,-167.41,0.00019473,2]
[359587502,1746162631810,-166.55,0.00019523,2]
[359587503,1746162631819,-166.55,0.00019572,2]
[359587505,1746162631829,-141.49,0.00019621,2]
[359587515,1746162631906,-25.06,0.00019621,2]
[359587517,1746162631915,-191.45630862,0.00019699,2]
[359587519,1746162631924,-155.5769965,0.00019799,2]
[359587521,1746162631933,-166.61380807,0.00019799,2]
[359587523,1746162631943,-409.43855171,0.000198,2]
[359587525,1746162631952,-382.83688886,0.00019811,2]
[359587531,1746162632067,-26.60166279,0.00019811,2]
[359587532,1746162632077,-409.43855165,0.00019822,2]
[359587533,1746162632086,-65.80946698,0.00019833,2]
[359587536,1746162637506,-343.62908467,0.00019833,2]
[359587537,1746162637516,-438.93,0.00019835,2]
[359587538,1746162637525,-409.43855165,0.00019844,2]
[359587539,1746162637534,-409.43855165,0.00019856,2]
[359587540,1746162637543,-409.43855165,0.00019867,2]
[359587541,1746162637553,-270.29516336,0.00019877,2]
[359587542,1746162637563,-409.43855165,0.00019878,2]
[359587543,1746162637572,-767.55584545,0.00019885,2]
[359587544,1746162637616,-432.44415455,0.00019885,2]
[359587545,1746162637626,-300.0,0.00019885,2]
[359587546,1746162637635,-214.9152002,0.00019886,2]
[359587547,1746162637647,-803.5124998,0.00019886,2]
[359587548,1746162637658,-2500.0,0.00019886,2]
[359587549,1746162637667,-1166.286,0.00019886,2]
[359587550,1746162637677,-2500.0,0.00019886,2]
[359587551,1746162637687,-409.43855165,0.00019889,2]
[359587552,1746162637696,-571.17732568,0.00019899,2]
[359587553,1746162637706,-225.0,0.000199,2]
[359587554,1746162637715,-2500.0,0.000199,2]
[359587555,1746162637725,-158.21966123,0.000199,2]
[359587556,1746162637734,-162.23859143,0.000199,2]
[359587557,1746162637744,-340.68,0.000199,2]
[359587558,1746162637754,-408.68,0.000199,2]
[359587559,1746162637763,-888.62,0.000199,2]
[359587560,1746162637772,-409.43855165,0.000199,2]
[359587561,1746162637782,-327.67804725,0.000199,2]
[359587562,1746162637792,-150.0,0.00019935,2]
[359587563,1746162637801,-207.4,0.00019953,2]
[359587564,1746162637810,-151.0,0.00019954,2]
[359587565,1746162637820,-160.11771949,0.00019973,2]
[359587566,1746162637829,-499.52427939,0.00019973,2]
[359587567,1746162637839,-591.19722479,0.00019973,2]
[359587568,1746162637849,-497.13315034,0.00019973,2]
[359587569,1746162637858,-500.0,0.00019973,2]
[359587570,1746162637868,-500.70350874,0.00019973,2]
[359587571,1746162637877,-500.0,0.00019973,2]
[359587572,1746162637887,-500.0,0.00019973,2]
[359587573,1746162637897,-500.0,0.00019973,2]
[359587574,1746162637907,-500.0,0.00019973,2]
[359587576,1746162637916,-200.65801217,0.00019985,2]
[359587585,1746162638177,-394.90419617,0.00019985,2]
[359587586,1746162638195,-180168.1617159,0.00019986,2]
[359587587,1746162638209,-14544.4749228,0.00019986,2]
[359587588,1746162638219,-6381.6926885,0.00019986,2]
[359587589,1746162638228,-3553.24,0.00019999,2]
[359587590,1746162638237,-536.82485784,0.00019999,2]
[359587591,1746162638247,-546.53360989,0.00019999,2]
[359587592,1746162638257,-186.48852192,0.0002,2]
[359587593,1746162638269,-692782.79564965,0.0002,2]
[359587594,1746162638279,-526730.33153797,0.0002,2]
[359587595,1746162638288,-258.24607885,0.0002,2]
[359587596,1746162638297,-151.0,0.0002,2]
[359587597,1746162638307,-153.78232717,0.0002,2]
[359587598,1746162638316,-5653.70570147,0.0002,2]
[359587599,1746162638326,-1655987.96838849,0.0002,2]
[359587600,1746162638342,-2064.45925757,0.0002,2]
[359587601,1746162638353,-5999.9407416,0.0002,2]
[359587603,1746162639584,-594.96847343,0.0002,2]
[359587604,1746162639808,-2054.82979878,0.0002,2]
[359587605,1746162639819,-1454.8873912,0.0002,2]
[359587606,1746162639867,-234941.805,0.0002,2]
[359587611,1746162642644,-37997.46453703,0.0002,2]
[359587612,1746162642743,-1395.0,0.0002,2]
[359587616,1746162645595,-626.75177475,0.00019888,2]
[359587617,1746162645907,-388.64377611,0.00019888,2]
[359587618,1746162645918,-262.54372389,0.00019888,2]
[359587619,1746162645930,-752.85182697,0.00019888,2]
[359587620,1746162645940,-1015.39555086,0.00019888,2]
[359587621,1746162645950,-1015.39555086,0.00019888,2]
[359587622,1746162645961,-1015.39555086,0.00019888,2]
[359587623,1746162645971,-1015.39555086,0.00019888,2]
[359587624,1746162645980,-534.85265095,0.00019888,2]
[359587625,1746162646313,-480.54289991,0.00019888,2]
[359587626,1746162646323,-1015.39555086,0.00019888,2]
[359587627,1746162646334,-1015.39555086,0.00019888,2]
[359587628,1746162646343,-1015.39555086,0.00019888,2]
[359587629,1746162646352,-1015.39555086,0.00019888,2]
[359587630,1746162646362,-1015.39555086,0.00019888,2]
[359587631,1746162646371,-1015.39555086,0.00019888,2]
[359587632,1746162646380,-1015.39555086,0.00019888,2]
[359587633,1746162646390,-1015.39555086,0.00019888,2]
[359587634,1746162646400,-1015.39555086,0.00019888,2]
[359587635,1746162646409,-1015.39555086,0.00019888,2]
[359587636,1746162646421,-1015.39555086,0.00019888,2]
[359587637,1746162646430,-1015.39555086,0.00019888,2]
[359587638,1746162646439,-1015.39555086,0.00019888,2]
[359587639,1746162646449,-1015.39555086,0.00019888,2]
[359587640,1746162646458,-1015.39555086,0.00019888,2]
[359587641,1746162646467,-1015.39555086,0.00019888,2]
[359587642,1746162646477,-1015.39555086,0.00019888,2]
[359587643,1746162646487,-1015.39555086,0.00019888,2]
[359587644,1746162646496,-1015.39555086,0.00019888,2]
[359587645,1746162646505,-1015.39555086,0.00019888,2]
[359587646,1746162646515,-1015.39555086,0.00019888,2]
[359587647,1746162646524,-1015.39555086,0.00019888,2]
[359587648,1746162646533,-1015.39555086,0.00019888,2]
[359587649,1746162646543,-1015.39555086,0.00019888,2]
[359587650,1746162646552,-1015.39555086,0.00019888,2]
[359587651,1746162646561,-1015.39555086,0.00019888,2]
[359587652,1746162646571,-1015.39555086,0.00019888,2]
[359587653,1746162646580,-1015.39555086,0.00019888,2]
[359587654,1746162646590,-200.29412761,0.000199,2]
[359587655,1746162646599,-32655.6771351,0.0002,2]
[359587662,1746162732909,167.05,0.00015895,2]
[359587665,1746162759835,294.0,0.0003,30]
[359587671,1746162932480,3553.24,0.00019215,2]
[359587672,1746162937494,200.0,0.00019164,2]
[359587673,1746162956986,941.82,0.00017246,2]
[359587674,1746162986557,197.0,0.000193,2]
[359587675,1746162990213,700.0,0.00032876,120]
[359587676,1746162992624,198.33,0.000193,2]
[359587677,1746162994519,700.0,0.00032876,120]
[359587678,1746162994676,700.0,0.00032876,120]
[359587679,1746162995168,630.1655637,0.00032876,120]
[359587681,1746163041296,1016.45,0.00030137,120]
[359587682,1746163047563,250.0,0.00019092,2]
[359587684,1746163189225,250.0,0.00017,2]
[359587685,1746163190294,300.0,0.00019,2]
[359587686,1746163392564,1206.84,0.00018908,2]
[359587687,1746163428732,1085.86,0.00018888,2]
[359587688,1746163452206,3018.41,0.00018889,2]
[359587689,1746163494371,1000.0,0.00018889,2]
[359587690,1746163520355,10039.02729176,9e-05,2]
[359587692,1746163601742,200.0,0.00018884,2]
[359587693,1746163650443,1397.713402,0.00019233,2]
[359587694,1746163676999,3362.91024677,0.0001,2]
[359587695,1746163677027,2054.65166273,0.0001,2]
[359587696,1746163685989,1000.0,0.00032876,60]
[359587697,1746163695409,5955.89822695,0.0001439,2]
[359587699,1746163759115,5610.46,0.00018896,2]
[359587703,1746163791830,3674.0,0.00018917,2]
[359587716,1746163832501,-308.79,0.0001933,2]
[359587717,1746163832512,-591.21,0.0001933,2]
[359587718,1746163832522,-250.0,0.00019341,2]
[359587719,1746163832530,-26.00190126,0.00019353,2]
[359587720,1746163832541,-173.99809874,0.00019353,2]
[359587721,1746163832551,-200.0,0.00019443,2]
[359587722,1746163832562,-276.6296521,0.000195,2]
[359587723,1746163832571,-941.82,0.0001951,2]
[359587724,1746163832582,-300.0,0.00019642,2]
[359587725,1746163832593,-1200.0,0.00019642,2]
[359587726,1746163832603,-11.63224916,0.00019642,2]
[359587727,1746163832615,-288.36775084,0.00019642,2]
[359587728,1746163832625,-294.49309025,0.00019644,2]
[359587729,1746163832635,-1303.07415891,0.00019648,2]
[359587730,1746163832650,-5284.65392293,0.00019648,2]
[359587731,1746163832669,-11642.35769434,0.00019648,2]
[359587732,1746163832686,-12880.11530088,0.00019648,2]
[359587733,1746163832699,-468.26544494,0.00019648,2]
[359587734,1746163832709,-630.24830038,0.00019648,2]
[359587735,1746163832721,-2475.883476,0.00019648,2]
[359587736,1746163832746,-4331.06449636,0.00019648,2]
[359587737,1746163832758,-5764.83045,0.00019648,2]
[359587738,1746163832769,-3332.6871248,0.00019648,2]
[359587739,1746163832780,-107.13839576,0.00019648,2]
[359587740,1746163832791,-1859.09458857,0.0001977,2]
[359587741,1746163832802,-1859.09458856,0.00019784,2]
[359587742,1746163832811,-166.66,0.00019786,2]
[359587743,1746163832821,-1859.09458856,0.00019799,2]
[359587744,1746163832830,-155.5769965,0.00019799,2]
[359587745,1746163832841,-1166.286,0.000198,2]
[359587746,1746163832850,-247.03010205,0.000198,2]
[359587747,1746163832862,-1244.15535,0.000198,2]
[359587748,1746163837630,-265.71883021,0.00019642,2]
[359587749,1746163837690,-234.28116979,0.00019642,2]
[359587750,1746163837700,-422.38883021,0.00019642,2]
[359587751,1746163837748,-77.61116979,0.00019642,2]
[359587752,1746163837758,-500.0,0.00019642,2]
[359587753,1746163837767,-500.0,0.00019642,2]
[359587754,1746163837777,-500.0,0.00019642,2]
[359587755,1746163837786,-360.19459985,0.00019642,2]
[359587756,1746163837801,-139.80540015,0.00019642,2]
[359587757,1746163837811,-500.0,0.00019642,2]
[359587758,1746163837820,-500.0,0.00019642,2]
[359587759,1746163837829,-454.3036232,0.00019642,2]
[359587760,1746163837863,-45.6963768,0.00019642,2]
[359587761,1746163837872,-500.0,0.00019642,2]
[359587762,1746163837882,-500.0,0.00019642,2]
[359587763,1746163837891,-500.0,0.00019642,2]
[359587764,1746163837900,-500.0,0.00019642,2]
[359587765,1746163837911,-385.74343587,0.00019642,2]
[359587766,1746163837921,-500.0,0.00019642,2]
[359587767,1746163837931,-500.0,0.00019642,2]
[359587768,1746163837941,-500.0,0.00019642,2]
[359587769,1746163837951,-500.0,0.00019642,2]
[359587770,1746163837961,-500.0,0.00019642,2]
[359587771,1746163837971,-500.0,0.00019642,2]
[359587772,1746163837981,-500.0,0.00019642,2]
[359587773,1746163837991,-500.0,0.00019642,2]
[359587774,1746163838001,-500.0,0.00019642,2]
[359587775,1746163838010,-500.0,0.00019642,2]
[359587776,1746163838019,-500.0,0.00019642,2]
[359587777,1746163838029,-500.0,0.00019642,2]
[359587778,1746163838039,-500.0,0.00019642,2]
[359587779,1746163838049,-500.0,0.00019642,2]
[359587782,1746163838059,-500.0,0.00019642,2]
[359587783,1746163838068,-1008.81454795,0.000198,2]
[359587785,1746163838310,-1000.0,0.000198,2]
[359587786,1746163838326,-1859.09458856,0.00019813,2]
[359587787,1746163838336,-1859.09458856,0.00019828,2]
[359587788,1746163838345,-200.0,0.0001984,2]
[359587789,1746163838356,-17990.2974001,0.00019844,2]
[359587790,1746163838365,-732.26901713,0.0001987,2]
[359587791,1746163838374,-2500.0,0.00019886,2]
[359587792,1746163838384,-158.21966123,0.00019899,2]
[359587793,1746163838393,-225.0,0.000199,2]
[359587794,1746163838402,-2500.0,0.000199,2]
[359587795,1746163838412,-162.23859143,0.000199,2]
[359587796,1746163838421,-47881.99334647,0.000199,2]
[359587797,1746163838431,-365.91099108,0.000199,2]
[359587798,1746163838441,-1011.25840374,0.000199,2]
[359587799,1746163838451,-1823.805,0.00019953,2]
[359587800,1746163838461,-171.439,0.00019953,2]
[359587801,1746163838470,-207.4,0.00019953,2]
[359587802,1746163838479,-151.0,0.00019954,2]
[359587803,1746163838489,-160.11771949,0.00019973,2]
[359587804,1746163838498,-591.19722479,0.00019973,2]
[359587805,1746163838508,-497.13315034,0.00019973,2]
[359587806,1746163838518,-500.0,0.00019973,2]
[359587807,1746163838528,-500.0,0.00019973,2]
[359587808,1746163838537,-500.0,0.00019973,2]
[359587809,1746163838547,-500.0,0.00019973,2]
[359587810,1746163838556,-499.52427939,0.00019973,2]
[359587811,1746163838565,-500.70350874,0.00019973,2]
[359587812,1746163838574,-81178.5040512,0.00019986,2]
[359587813,1746163838584,-3468.2518294,0.00019986,2]
[359587814,1746163838593,-8010.3617776,0.00019986,2]
[359587815,1746163838603,-200.65801217,0.00019999,2]
[359587816,1746163838612,-394.90419617,0.00019999,2]
[359587817,1746163838621,-536.82485784,0.00019999,2]
[359587818,1746163838631,-300.0,0.00019999,2]
[359587819,1746163838640,-546.53360989,0.00019999,2]
[359587820,1746163838650,-279.5121,0.00019999,2]
[359587821,1746163838660,-535.0,0.0002,2]
[359587822,1746163838669,-186.48852192,0.0002,2]
[359587823,1746163838678,-696628.50324868,0.0002,2]
[359587824,1746163838690,-2218301.84778389,0.0002,2]
[359587825,1746163838702,-2074.10097665,0.0002,2]
[359587829,1746163839867,-571.17732568,0.000198,2]
[359587830,1746163839876,-187.62047768,0.0002,2]
[359587831,1746163839982,-1214.55459274,0.0002,2]
[359587832,1746163840099,-7060.21096805,0.0002,2]
[359587833,1746163840111,-4939.780016,0.0002,2]
[359587834,1746163840122,-3070.5981233,0.0002,2]
[359587835,1746163840133,-3255.66817225,0.0002,2]
[359587836,1746163840145,-3622.03466094,0.0002,2]
[359587838,1746163841755,-911.93905103,0.0002,2]
[359587839,1746163841767,-574.72339879,0.0002,2]
[359587840,1746163841778,-307.75856115,0.0002,2]
[359587841,1746163841868,-367.03000001,0.0002,2]
[359587842,1746163841880,-5260.31718644,0.0002,2]
[359587864,1746163842882,-651.55,0.00019842,2]
[359587865,1746163842996,-494.15689218,0.00019842,2]
[359587866,1746163843008,-713.38769638,0.00019842,2]
[359587867,1746163843018,-13.58303277,0.0002,2]
[359587877,1746163845950,-327.67804725,0.000199,2]
[359587878,1746163845960,-710.20995275,0.0002,2]
[359587879,1746163845975,-533.48399997,0.0002,2]
[359587880,1746163846022,-712.682,0.0002,2]
[359587904,1746163957284,150.0,0.00019313,2]
[359587905,1746163988507,880.96,0.00017635,2]
[359587907,1746164277389,450.0,0.00018949,2]
[359587908,1746164304994,250.0,0.00018949,2]
[359587909,1746164615070,534.48,0.00019017,2]
[359587910,1746164695475,1500.0,0.0003,30]
[359587911,1746164761498,151.09,0.00018877,2]
[359587912,1746164893743,388.66,0.00018859,2]
[359587913,1746164940929,1000.0,0.00018854,2]
[359587914,1746165002504,250.0,0.00017,2]
[359587915,1746165003011,836.91,0.00016949,2]
[359587916,1746165003214,836.91,0.00019213,2]
[359587917,1746165003597,300.0,0.00019,2]
[359587922,1746165031835,-178.94,0.00019422,2]
[359587923,1746165031845,-250.0,0.00019457,2]
[359587924,1746165031854,-200.0,0.00019457,2]
[359587925,1746165031863,-1526.0,0.00019476,2]
[359587926,1746165031873,-200.0,0.00019491,2]
[359587927,1746165031882,-184.12714613,0.0001954,2]
[359587928,1746165031892,-200.0,0.00019554,2]
[359587929,1746165031901,-500.0,0.00019671,2]
[359587930,1746165031911,-500.0,0.00019671,2]
[359587931,1746165031923,-249.19968241,0.000197,2]
[359587932,1746165031932,-270.0705,0.000197,2]
[359587933,1746165031942,-1826.55476693,0.00019794,2]
[359587934,1746165031952,-155.5769965,0.00019799,2]
[359587935,1746165031962,-571.17732568,0.000198,2]
[359587936,1746165031972,-1200.0,0.00019805,2]
[359587937,1746165031981,-1826.55476691,0.00019806,2]
[359587938,1746165031990,-300.0,0.00019817,2]
[359587939,1746165032000,-1826.55476691,0.00019818,2]
[359587940,1746165032009,-1826.55476691,0.00019829,2]
[359587941,1746165032020,-1826.55476691,0.00019841,2]
[359587942,1746165032030,-12500.0,0.00019847,2]
[359587943,1746165032040,-1826.55476691,0.00019853,2]
[359587944,1746165032049,-12500.0,0.00019856,2]
[359587945,1746165032059,-598.49014018,0.00019864,2]
[359587946,1746165032068,-598.49014018,0.00019864,2]
[359587947,1746165032078,-598.49014018,0.00019864,2]
[359587948,1746165032087,-598.49014018,0.00019864,2]
[359587949,1746165032097,-598.49014018,0.00019864,2]
[359587950,1746165032106,-598.49014018,0.00019864,2]
[359587951,1746165032115,-598.49014018,0.00019864,2]
[359587952,1746165032125,-598.49014018,0.00019864,2]
[359587953,1746165032135,-598.49014018,0.00019864,2]
[359587954,1746165032145,-598.49014018,0.00019864,2]
[359587955,1746165032154,-598.49014018,0.00019864,2]
[359587956,1746165032163,-598.49014018,0.00019864,2]
[359587957,1746165032173,-598.49014018,0.00019864,2]
[359587958,1746165032182,-598.49014018,0.00019864,2]
[359587959,1746165032192,-598.49014018,0.00019864,2]
[359587960,1746165032201,-598.49014018,0.00019864,2]
[359587961,1746165032211,-598.49014018,0.00019864,2]
[359587982,1746165032451,-598.49014018,0.00019864,2]
[359587983,1746165032486,-598.49014018,0.00019864,2]
[359587984,1746165032496,-598.49014018,0.00019864,2]
[359587985,1746165032506,-441.11260338,0.00019864,2]
[359587986,1746165032523,-157.3775368,0.00019864,2]
[359587987,1746165032533,-598.49014018,0.00019864,2]
[359587988,1746165032543,-598.49014018,0.00019864,2]
[359587989,1746165032552,-598.49014018,0.00019864,2]
[359587990,1746165032561,-598.49014018,0.00019864,2]
[359587991,1746165032571,-20.45402452,0.00019864,2]
[359587992,1746165032582,-578.03611566,0.00019864,2]
[359587993,1746165032591,-598.49014018,0.00019864,2]
[359587994,1746165032601,-598.49014018,0.00019864,2]
[359587995,1746165032610,-598.49014018,0.00019864,2]
[359587996,1746165032619,-598.49014018,0.00019864,2]
[359587997,1746165032629,-598.49014018,0.00019864,2]
[359587998,1746165032640,-598.49014018,0.00019864,2]
[359587999,1746165032649,-294.62479448,0.00019864,2]
[359588000,1746165032660,-303.8653457,0.00019864,2]
[359588001,1746165032670,-598.49014018,0.00019864,2]
[359588002,1746165032679,-598.49014018,0.00019864,2]
[359588003,1746165032688,-598.49014018,0.00019864,2]
[359588004,1746165032697,-598.49014018,0.00019864,2]
[359588005,1746165032707,-150.94165603,0.00019864,2]
[359588006,1746165032720,-447.54848415,0.00019864,2]
[359588007,1746165032729,-598.49014018,0.00019864,2]
[359588008,1746165032738,-598.49014018,0.00019864,2]
[359588009,1746165032748,-598.49014018,0.00019864,2]
[359588010,1746165032757,-358.98109531,0.00019864,2]
[359588011,1746165032769,-239.50904487,0.00019864,2]
[359588012,1746165032778,-598.49014018,0.00019864,2]
[359588013,1746165032789,-598.49014018,0.00019864,2]
[359588014,1746165032799,-598.49014018,0.00019864,2]
[359588015,1746165032808,-598.49014018,0.00019864,2]
[359588016,1746165032818,-598.49014018,0.00019864,2]
[359588017,1746165032827,-598.49014018,0.00019864,2]
[359588018,1746165032837,-598.49014018,0.00019864,2]
[359588019,1746165032847,-598.49014018,0.00019864,2]
[359588020,1746165032856,-598.49014018,0.00019864,2]
[359588021,1746165032865,-598.49014018,0.00019864,2]
[359588022,1746165032875,-898.38770911,0.00019864,2]